Cogmind - Beta 16 @@@ ROGUE MODE // 2025.12.31 @ 17:33:49 Player: Compilatron Result: Destroyed by as-66754 with Assembled Blade Performance ------------- Evolutions (0) 0 Regions Visited (2) 400 Robots Destroyed (27) 135 Value Destroyed (676) 676 Prototype IDs (1) 20 Alien Tech Used (0) 0 Bonus (0) 0 TOTAL SCORE: 1231 Bonus ------- None Cogmind --------- Core Integrity 0/250 Matter 284/300 Energy 146/160 System Corruption 0% Temperature Cool (24) Movement Core (550) Ox10 Location -10/Mines Parts ------- > --- POWER (1) -------- Light Nuclear Core > --- PROPULSION (2) --- Light Treads > --- UTILITY (2) ------ Large Storage Unit Signal Interpreter > --- WEAPON (2) ------- Beam Rifle Heavy Assault Rifle > --- INVENTORY (15) --- Ion Engine Improved Ion Engine Improved Ion Engine Aluminum Leg Aluminum Leg Core Shielding Power Shielding Propulsion Shielding Weapon Shielding Field Recycling Unit (0) EM Pulse Gun Light Assault Rifle Grenade Launcher Mining Laser Peak State ------------ > --- POWER ------------ Light Nuclear Core > --- PROPULSION ------- Light Treads Wheel > --- UTILITY ---------- Large Storage Unit Signal Interpreter > --- WEAPON ----------- Beam Rifle Heavy Assault Rifle > --- INVENTORY -------- Ion Engine Improved Ion Engine Improved Ion Engine Aluminum Leg Aluminum Leg Core Shielding Power Shielding Propulsion Shielding Weapon Shielding Field Recycling Unit EM Pulse Gun Light Assault Rifle Grenade Launcher Mining Laser [Rating: 12] Favorites ----------- Power Ion Engine Engine Ion Engine Power Core Light Nuclear Core Propulsion Light Treads Treads Light Treads Leg Aluminum Leg Wheel Wheel Utility Large Storage Unit Storage Large Storage Unit Processor Signal Interpreter Weapon Improved Medium Laser Energy Gun Improved Medium Laser Ballistic Gun Heavy Assault Rifle Build | -11 -10 -10 ------- Run | Yrd Mat Min Slots Evolved . | . . . Power . | . . . Propulsion . | . . . Utility . | . . . Weapon . | . . . Parts Attached 20 | 1 10 9 Power 3 | . 1 2 Engine 2 | . 1 1 Core 1 | . . 1 Reactor . | . . . Propulsion 6 | . 4 2 Treads 2 | . 1 1 Leg . | . . . Wheel 4 | . 3 1 Hover . | . . . Flight . | . . . Utility 3 | . 2 1 Device . | . . . Storage 2 | . 2 . Processor 1 | . . 1 Hackware . | . . . Protection . | . . . Artifact . | . . . Weapon 8 | 1 3 4 Energy Gun 5 | . 3 2 Energy Cannon . | . . . Ballistic Gun 3 | 1 . 2 Ballistic Cannon . | . . . Launcher . | . . . Special Weapon . | . . . Impact Weapon . | . . . Slashing Weapon . | . . . Piercing Weapon . | . . . Special Melee Weapon . | . . . Unidentified Prototypes 1 | . 1 . Parts Lost 8 | . 3 5 Power 2 | . 1 1 Propulsion 3 | . 1 2 Utility . | . . . Weapon 3 | . 1 2 Highest Loss Streak 3 | . 2 3 To Critical Strikes . | . . . Average Backups 9 | 6 9 10 Power 1 | 1 1 1 Propulsion 2 | 4 3 2 Utility 2 | . 2 3 Weapon 2 | 1 2 3 Tool/Special . | . . . Unused Backups 10 | . . 10 Power 1 | . . 1 Propulsion 2 | . . 2 Utility 5 | . . 5 Weapon 2 | . . 2 Tool/Special . | . . . Average Slot Usage (%) 81 | . 76 85 Engine 9 | . 13 6 Treads 15 | . 2 23 Leg 3 | . 9 . Wheel 6 | . 13 2 Storage 14 | . 14 14 Processor 5 | . . 9 Energy Gun 17 | . 21 14 Ballistic Gun 8 | . . 14 Peak Build Rating 12 | 6 11 12 Average Rating 9 | 6 9 9 On Entrance 6 | 6 6 7 Avg Prop Armor Cover (%) 12 | . 12 12 Naked Turns . | . . . Heaviest Build 91 | 14 91 85 Greatest Support 40 | 20 20 40 Greatest Overweight (x) 9 | . 9 3 Average Overweight (x) 1 | . 3 . Largest Inventory Capacity 25 | 8 25 25 Average Capacity 17 | 8 19 15 Most Carried 14 | 6 11 14 Average Carried 9 | 6 9 10 Final Capacity 25 | 8 25 15 Final Carried 14 | 6 11 14 Class Distribution -------------------- 90% | Mutant 9% | Scavenger-Mutant Dominant Class ---------------- Mutant | -10/Materials Mutant | -10/Mines Resources | -11 -10 -10 ----------- Run | Yrd Mat Min Matter Collected 519 | 200 110 209 Remotely . | . . . Salvage Created 829 | . 399 430 Parts 49 | . 26 23 Haulers Intercepted . | . . . Recyclers Shooed . | . . . Parts Field Recycled . | . . . Retrieved Matter . | . . . Parts Self-Destructed . | . . . Prevented . | . . . Parts Restored . | . . . Kills | -11 -10 -10 ------- Run | Yrd Mat Min Combat Hostiles Destroyed 25 | . 12 13 Guns 25 | . 12 13 Classes Destroyed 5 | . 4 1 Mechanic 1 | . 1 . Operator 1 | . 1 . Swarmer 11 | . 6 5 Grunt 12 | . 6 6 Sentry 2 | . . 2 Best Kill Streak 5 | . 5 2 Combat Bots Only 5 | . 5 2 Max Kills in Single Turn 1 | . 1 1 Gunslinging . | . . . Exploded . | . . . Melee . | . . . Uniques/NPCs Destroyed . | . . . Combat | -11 -10 -10 -------- Run | Yrd Mat Min Hostile Shots Fired 152 | . 61 91 Missed 46 | . 15 31 Hits 106 | . 46 60 Melee 4 | . . 4 Projectile 102 | . 46 56 Critical Strikes 4 | . 1 3 Damage Taken 1202 | . 407 795 Core 274 | . 104 170 Absorbed by Shields . | . . . Core Remaining (%) 100 | 100 . . Volleys Fired 78 | . 32 46 Largest 2 | . 2 2 Hottest 112 | . 112 79 Shots Fired 145 | . 54 91 Gun 145 | . 54 91 Cannon . | . . . Launcher . | . . . Special . | . . . Kinetic 45 | . . 45 Thermal 96 | . 54 42 Explosive . | . . . Electromagnetic 4 | . . 4 Robot Hit Streak 11 | . 6 11 Robot Miss Streak 7 | . 7 4 Penetration Max . | . . . Secondary Targets 4 | . 1 3 Max Gunslinging Chain 1 | . 1 1 Shots Hit Robots 80 | . 23 57 Core Hits 37 | . 14 23 Critical Kills . | . . . Critical Parts Destroyed . | . . . Critical Strikes 8 | . 5 3 Burn 8 | . 5 3 Melee Attacks . | . . . Impact . | . . . Slashing . | . . . Piercing . | . . . Sneak Attacks . | . . . Combat Hostiles . | . . . Follow-up Attacks . | . . . Damage Inflicted 1271 | . 437 834 Guns 1271 | . 437 834 Cannons . | . . . Explosions . | . . . Melee . | . . . Ramming . | . . . Kinetic 370 | . . 370 Thermal 855 | . 437 418 Explosive . | . . . Electromagnetic 46 | . . 46 Impact . | . . . Slashing . | . . . Piercing . | . . . Highest Corruption . | . . . Average Corruption . | . . . Corruption Purged . | . . . Corruption Blocked . | . . . Overload Shots . | . . . Overflow Damage . | . . . Projectiles . | . . . Explosions . | . . . Melee . | . . . Knockbacks . | . . . Impact . | . . . Kinetic . | . . . Secondary . | . . . Self-Inflicted Damage . | . . . Shots . | . . . Rammed . | . . . Targets Rammed . | . . . Kicked . | . . . Crushed . | . . . Highest Temperature 327 | . 327 201 Average Temperature 94 | . 127 56 Received Heat Transfer 354 | . 84 270 Effects 4 | . 4 . Energy Bleed 1 | . 1 . Interference 2 | . 2 . Damage (minor) 1 | . 1 . Siege Activations . | . . . Martial Activations . | . . . Shielding Activations . | . . . Robots Disrupted . | . . . Combat Hostiles . | . . . Robots Corrupted . | . . . Combat Hostiles . | . . . Parts Fried . | . . . Impact Corruptions . | . . . Robots Melted . | . . . Combat Hostiles . | . . . Parts Melted 7 | . 3 4 Heat Transferred 2516 | . 1332 1184 Parts Sabotaged . | . . . Parts Stolen . | . . . Parts Stripped . | . . . Power Chain Reactions . | . . . Alert | -11 -10 -10 ------- Run | Yrd Mat Min Maximum Alert Level . | . . . Low Security (%) 100 | 100 100 100 Level 1 . | . . . Level 2 . | . . . Level 3 . | . . . Level 4 . | . . . Level 5 . | . . . High Security . | . . . Max Security . | . . . Peak Influence 104 | . 104 62 Initial 21 | . . 21 Average 30 | . 46 18 Influence Increases 624 | . 296 328 Destroy 0b10 Robot/C 500 | . 240 260 Destroy 0b10 Robot/NC 15 | . 10 5 Destroy Leader 80 | . 40 40 Allied During Kill 8 | . . 8 Successful Hack 4 | . 4 . Destroy Structure 2 | . 2 . Lose Combat Pursuer 15 | . . 15 Influence Decreases 576 | . 242 334 Entered New Map 33 | . . 33 Time Decay 463 | . 212 251 Lost Part 60 | . 30 30 Lost Ally 20 | . . 20 Squads Dispatched 2 | . 2 . Investigation . | . . . Extermination . | . . . Reinforcement 2 | . 2 . Assault . | . . . Garrison . | . . . Intercept . | . . . Searches Triggered . | . . . Construction Impeded . | . . . Haulers Reinforced . | . . . Active Scanning Responses . | . . . Cargo Convoy Interrupts . | . . . Stealth | -11 -10 -10 --------- Run | Yrd Mat Min Distress Signals 1 | . 1 . Communications Jammed . | . . . Distress Signals . | . . . Times Spotted 39 | . 22 17 Peak Tracking Total 6 | . 6 3 Tactical Retreats 1 | . . 1 Traps | -11 -10 -10 ------- Run | Yrd Mat Min Traps Triggered 1 | . 1 . Indirectly . | . . . Trap Hack Attempts . | . . . Triggered . | . . . Disarmed . | . . . Reprogrammed . | . . . Reused . | . . . Traps Extracted . | . . . Installed . | . . . Triggered . | . . . Machines | -11 -10 -10 ---------- Run | Yrd Mat Min Machines Disabled 1 | . . 1 Max in Single Turn 1 | . . 1 Machines Repaired . | . . . Machines Dismantled . | . . . Machines Sabotaged . | . . . Overloaded Fab Kills . | . . . Hacking | -11 -10 -10 --------- Run | Yrd Mat Min Machines Accessed 5 | . 5 . Terminals 3 | . 3 . Fabricators . | . . . Repair Stations 1 | . 1 . Recycling Units 1 | . 1 . Scanalyzers . | . . . Garrison Access . | . . . Total Hacks 8 | . 8 . Successful 2 | . 2 . Failed 6 | . 6 . Catastrophic 2 | . 2 . Database Lockouts . | . . . Manual 5 | . 5 . Terminals 5 | . 5 . Fabricators . | . . . Repair Stations 1 | . 1 . Recycling Units 2 | . 2 . Scanalyzers . | . . . Garrison Access . | . . . Terminal Hacks 1 | . 1 . Locate Traps 1 | . 1 . Fabricator Hacks . | . . . Repair Station Hacks . | . . . Recycling Unit Hacks . | . . . Scanalyzer . | . . . Garrison Access Hacks . | . . . Unauthorized Hacks 1 | . 1 . Terminals . | . . . Fabricators . | . . . Repair Stations . | . . . Recycling Units 1 | . 1 . Mask 1 | . 1 . Scanalyzers . | . . . Garrison Access . | . . . Data Cores Recovered . | . . . Used . | . . . Hacking Detections 5 | . 5 . Full Trace Events . | . . . Feedback Events . | . . . Feedback Blocked . | . . . Robot Schematics Acquired . | . . . Robots Built . | . . . Authchips . | . . . Time . | . . . Total Robot Build Rating . | . . . Part Schematics Acquired . | . . . Parts Built . | . . . Authchips . | . . . Time . | . . . Total Part Build Rating . | . . . Part Studies Acquired . | . . . Parts Repaired . | . . . Time . | . . . Parts Recycled . | . . . Recycled Matter . | . . . Retrieved Matter . | . . . Retrieved Components . | . . . Parts Scanalyzed . | . . . Part Schematics Acquired . | . . . Parts Damaged . | . . . Bothacking | -11 -10 -10 ------------ Run | Yrd Mat Min Used RIF Installer . | . . . Robots Hacked . | . . . Non-combat . | . . . Combat . | . . . Robot Hacks Applied . | . . . Relay Couplers Released . | . . . Fabnet Peak Effective % . | . . . Robots Rewired . | . . . Allies Hacked . | . . . Hacks Repelled . | . . . Allies | -11 -10 -10 -------- Run | Yrd Mat Min Total Allies 3 | . . 3 Largest Group 2 | . . 2 Highest-Rated Group 42 | . . 42 Highest-Rated Ally 31 | . . 31 Total Orders . | . . . Ally Attacks 13 | . . 13 Total Damage 126 | . . 126 Kills 1 | . . 1 Allies Corrupted . | . . . Allies Melted . | . . . Intel | -11 -10 -10 ------- Run | Yrd Mat Min Active Infowar (turns) . | . . . Robot Analysis Total . | . . . Derelict Logs Recovered 1 | . . 1 Drone Launches . | . . . Drone Recoveries . | . . . Exploration | -11 -10 -10 ------------- Run | Yrd Mat Min Turns Passed 1379 | 2 571 806 Spaces Moved 676 | 1 292 383 Core . | . . . Treads 316 | . . 316 Legs 51 | 1 50 . Wheels 309 | . 242 67 Hover . | . . . Flight . | . . . Fastest Speed 110 | 120 110 125 Average Speed 155 | 120 148 160 Slowest Speed 320 | 120 215 320 Overloaded Moves . | . . . Propulsion Burnouts . | . . . Robots Hopped . | . . . Potential Cave-ins . | . . . Cave-ins Triggered . | . . . Exploration Rate (%) 41 | 2 49 73 Regions Visited 2 Branch Regions 1 Pre-discovered Areas . | . . . Known Exits Taken . | . . . Unknown Exits Taken 2 | 1 1 . Scrap Searched . | . . . Spaces Dug . | . . . Terrain Destroyed . | . . . Melee . | . . . Projectile . | . . . AOE . | . . . Terrain Rammed . | . . . Walls Destroyed . | . . . Machines Disabled . | . . . Actions | -11 -10 -10 --------- Run | Yrd Mat Min Total 858 | 1 372 485 Wait 58 | . 27 31 Move 674 | . 291 383 Hop . | . . . Pick Up 20 | . 8 12 Fast Attach 3 | . 3 . Attach 11 | . 3 8 Detach . | . . . Swap 10 | 1 5 4 Drop 4 | . 3 1 Fire 78 | . 32 46 Melee . | . . . Ram . | . . . Kick . | . . . Crush . | . . . Escape Stasis . | . . . Rewire . | . . . Trap . | . . . Miscellaneous . | . . . Route ------- -11/Scrapyard -10/Materials (discovered 2 exits: *Mat / [*Min]) -10/Mines (discovered 2 exits: *Mat x2) History --------- Turn | Location | Event 3 | -11/Scrapyard | Discovered new exit (range 0) 3 | -11/Scrapyard | Entered Materials 319 | -10/Materials | Build established: Mutant 368 | -10/Materials | Discovered new exit (range 16) 528 | -10/Materials | Discovered new exit (range 16) 574 | -10/Materials | Entered Mines 627 | -10/Mines | Lost 3 parts (1p1n1w) 762 | -10/Mines | Core integrity fell below 50% 817 | -10/Mines | Learned Materials terminal intel 830 | -10/Mines | Discovered new exit (range 11) 852 | -10/Mines | Identified exit to Materials 884 | -10/Mines | Discovered exit to Materials (range 9) 935 | -10/Mines | Core integrity fell below 20% 1263 | -10/Mines | Escorted by a lone wolf Derelict 1347 | -10/Mines | Assembled infested the area 1352 | -10/Mines | Assisted by a Guerilla fighting off Assembled 1380 | -10/Mines | Destroyed by as-66754 with Assembled Blade Last Messages --------------- 01241_ Acquired 3 matter. 01254_ Acquired Wheel. 01256_ Acquired 10 matter. 01263_ A derelict emerges from the shadows: "Nice work disposing of those Unaware! I'm happy to return the favor and help see you out of these parts." 01285_ K-01 Serf collects debris. 01321_ G-47 Trooper destroyed. 01336_ G-34 Mercenary destroyed. 01347_ ALERT: Infestation in the mines, dispatching Demolisher response squad. 01352_ A derelict emerges from the shadows: "You need to get out of here! I've been tracking a group of Assembled to figure out where they're coming from, and they're closing on this area, come on!" 01352_ Acquired 24 matter. 01356_ Acquired Lgt. Nuclear Core. 01378_ Wheel severed. Map ----- +----------------------------------------------------+ | ???????## #???## #?## ## ???????????? | | ????????# #???# ## ##?# ### ???????????? | | ????????# #???# ##??####????????????????? | | ????????# #???# ##?????????????????????? | | ????????# #???# ##????????????????????? | | ????????# #???# ##???????????????????? | | ????????# #??## ##??? ##????????????? | | ????????# #??# ## #????????????? | | #???????# #??# = #????????????? | | ####????# #??## % ##????????????? | | ###### #???### %= #### ####?????????????? | | #?????### = ##???###????????????????? | | "" #######???????### ##??????????????????????? | | "" ##???????????????## ##?????????????????????? | | "" ####?????????????## #?????????????????????? | | "" #?????????##### #?????????????????????? | | #????????## ##?????????????????????? | | ##### #????????# ##??????????????????????? | | ##### #####???# ## #???????????????????????? | | #???# #?# #???????????????????????? | | #???# ##??# #?????#?????????????????? | | #??# #????# #??## #?????????????????? | | #??####?????# #?# ##????????????????? | | #???????????# ## #????????????????? | | #???????????# g#a #????????????????? | | #???????????# @a #?????????????????? | | #???????????##### ##?????????????????? | | ###########?????????????????###??????????????????? | | ?????????????????????????????????????????????????? | | ?????????????????????????????????????????????????? | | | | | | | | | | | | | | | | | | | | | | | | | | | | | | | | | | | | | | | | | +----------------------------------------------------+ Best States ------------- Heat Dissipation 25 Energy Generation 14 Energy Capacity 265 Matter Stores 300 Matter Capacity 300 Sight Range 16 Terrain Scan Density 10 Evasion (%) 55 Recoil Reduction 2 Item Schematics ----------------- None Robot Schematics ------------------ None Fabricated ------------ Nothing Repaired ---------- Nothing Studied --------- None Alien Tech Used ----------------- None Achievements -------------- None Challenges ------------ None Game ------ Seed ComponentProcessingFalx Manual? 0 Play Time 00:11:07 Cumulative 85.4 hours Start 2025.12.31 @ 17:26:08 End 2025.12.31 @ 17:33:49 Sessions 1 Manual Loads 0 Difficulty Rogue Special Mode None Game No. 138 Rogue 114 Adventurer 20 Explorer 4 Win Type - Total 1 Types 0/0/0/1/0/0/0/0/0/0 Lore% 55 Gallery% 45 Achievement% 36 Wizard Run 0 Options --------- Layout 1 ASCII 0 Keyboard 0 Movement Numpad Keybinds 0 Fullscreen 2 Font 24/Smallcaps Map View 50x35 Zoom Use 0% Tactical HUD 1 Map Filters NONE Filters NONE Steam 1 RUN: 48d85fa3-c07d-48f3-8396-12ac415620f1